bitfinex-derivatives/quotes_SOLF0:USTF0_20251026
["timestamp","ask_amount","ask_price","bid_price","bid_amount"]
[1761450583374,3.90881846,192.97,192.88,2.88]
[1761450583675,1.51351508,192.98,192.88,2.88]
[1761450583874,5.42233354,192.98,192.88,2.88]
[1761450584074,3.90881846,192.97,192.88,2.88]
[1761450584472,1.51351508,192.98,192.88,2.88]
[1761450584672,3.90881846,192.99,192.9,1.51351508]
[1761450584877,3.90881846,193.0,192.91,2.88]
[1761450586176,2.41574733,193.01,192.91,2.88]
[1761450586376,6.32456579,193.01,192.91,2.88]
[1761450586577,3.90881846,193.0,192.91,2.88]
[1761450586773,2.41574733,193.01,192.91,2.88]
[1761450586978,6.32456579,193.01,192.91,2.88]
[1761450587282,3.90881846,193.0,192.91,2.88]
[1761450587579,2.41574733,193.01,192.91,2.88]
[1761450587767,6.32456579,193.01,192.91,2.88]
[1761450587972,3.90881846,193.0,192.91,2.88]
[1761450590374,3.90881846,192.99,192.91,2.88]
[1761450590574,3.90881846,193.0,192.91,2.88]
[1761450590883,1.51351508,192.98,192.91,2.88]
[1761450592381,5.42233354,192.98,192.91,2.88]
[1761450592581,3.90881846,192.97,192.91,2.88]
[1761450593284,1.51351508,192.98,192.91,2.88]
[1761450593980,5.42233354,192.98,192.91,2.88]
[1761450594181,3.90881846,192.97,192.91,2.88]
[1761450594884,1.51351508,192.98,192.91,2.88]
[1761450595277,5.42233354,192.98,192.91,2.88]
[1761450595481,3.90881846,192.97,192.91,2.88]
[1761450595682,1.51351508,192.98,192.91,2.88]
[1761450596079,5.42233354,192.98,192.91,2.88]
[1761450596279,3.90881846,192.97,192.91,2.88]
[1761450598284,3.90881846,192.96,192.91,2.88]
[1761450598477,3.90881846,192.97,192.91,2.88]
[1761450598673,3.90881846,192.96,192.91,2.88]
[1761450598983,3.90881846,192.97,192.91,2.88]
[1761450599184,3.90881846,192.96,192.91,2.88]
[1761450599373,3.90881846,192.97,192.91,2.88]
[1761450599577,3.90881846,192.96,192.91,2.88]
[1761450599884,3.90881846,192.97,192.91,2.88]
[1761450600086,3.90881846,192.96,192.91,2.88]
[1761450600281,3.90881846,192.95,192.91,2.88]
[1761450600477,3.90881846,192.97,192.91,2.88]
[1761450600677,3.90881846,192.96,192.91,2.88]
[1761450600881,3.90881846,192.95,192.91,2.88]
[1761450601081,3.92074189,192.97,192.91,2.88]
[1761450601283,3.92074189,192.96,192.91,2.88]
[1761450601483,3.92074189,192.95,192.91,2.88]
[1761450601687,1.51351508,192.96,192.91,2.88]
[1761450601878,3.92280114,192.95,192.91,2.88]
[1761450602079,1.51351508,192.96,192.91,2.88]
[1761450602278,3.92286452,192.95,192.91,2.88]
[1761450602477,1.51351508,192.96,192.91,2.88]
[1761450602682,3.92529762,192.95,192.91,2.88]
[1761450602883,1.51351508,192.96,192.91,2.88]
[1761450603184,3.92529762,192.95,192.91,2.88]
[1761450603383,3.92529762,192.94,192.91,2.88]
[1761450603583,1.51351508,192.96,192.91,2.88]
[1761450603783,3.92852104,192.95,192.91,2.88]
[1761450603980,3.92852104,192.94,192.91,2.88]
[1761450604186,1.51351508,192.96,192.91,2.88]
[1761450604385,3.9325289,192.95,192.91,2.88]
[1761450604680,3.9325289,192.94,192.91,2.88]
[1761450604984,3.9325289,192.93,192.91,2.88]
[1761450605285,1.51351508,192.96,192.91,2.88]
[1761450605484,3.93264739,192.95,192.91,2.88]
[1761450605682,3.93264739,192.94,192.91,2.88]
[1761450605877,3.93264739,192.93,192.91,2.88]
[1761450606074,1.51351508,192.96,192.91,2.88]
[1761450606384,3.93265034,192.95,192.91,2.88]
[1761450606584,3.93265034,192.94,192.91,2.88]
[1761450606785,3.93265034,192.93,192.91,2.88]
[1761450606980,1.51351508,192.96,192.91,2.88]
[1761450607180,3.93280294,192.95,192.91,2.88]
[1761450607381,3.93280294,192.94,192.91,2.88]
[1761450607581,3.93280294,192.93,192.91,2.88]
[1761450607785,1.51351508,192.96,192.91,2.88]
[1761450607985,3.93293916,192.95,192.91,2.88]
[1761450608176,3.93293916,192.94,192.91,2.88]
[1761450608382,3.93293916,192.93,192.91,2.88]
[1761450608581,6.34485257,192.97,192.91,2.88]
[1761450608782,3.9283547,192.96,192.91,2.88]
[1761450609086,3.9283547,192.95,192.91,2.88]
[1761450609283,3.9283547,192.94,192.91,2.88]
[1761450609485,4.83133749,192.99,192.91,2.88]
[1761450609786,3.92818003,192.98,192.91,2.88]
[1761450609988,3.92818003,192.97,192.91,2.88]
[1761450610188,4.83133749,192.99,192.91,2.88]
[1761450610189,3.92818003,192.96,192.91,2.88]
[1761450610387,3.92818003,192.95,192.91,2.88]
[1761450610584,4.83133749,192.99,192.91,2.88]
[1761450610785,3.92777932,192.98,192.91,2.88]
[1761450610986,3.92777932,192.97,192.91,2.88]
[1761450611178,3.92777932,192.96,192.91,2.88]
[1761450611489,6.34485257,193.0,192.91,2.88]
[1761450611687,3.92728016,192.99,192.91,2.88]
[1761450611888,3.92728016,192.98,192.91,2.88]
[1761450612089,3.92728016,192.97,192.91,2.88]
[1761450612289,3.92728016,192.96,192.91,2.88]
[1761450612489,6.34485257,193.0,192.91,2.88]
[1761450612686,3.92693279,192.99,192.91,2.88]
[1761450612886,3.92693279,192.98,192.91,2.88]
[1761450613088,3.92693279,192.97,192.91,2.88]
[1761450613388,3.92693279,192.96,192.91,2.88]
[1761450613687,6.34485257,193.0,192.91,2.88]
[1761450613881,3.9266562,192.99,192.91,2.88]
[1761450614082,3.9266562,192.98,192.91,2.88]
[1761450614279,3.9266562,192.97,192.91,2.88]
[1761450614480,3.9266562,192.96,192.91,2.88]
[1761450614787,3.9266562,192.95,192.91,2.88]
[1761450614983,3.9266562,192.94,192.91,2.88]
[1761450615180,6.34485257,192.98,192.91,2.88]
[1761450615488,3.92703515,192.97,192.91,2.88]
[1761450615689,3.92703515,192.96,192.91,2.88]
[1761450615890,3.92703515,192.95,192.91,2.88]
[1761450616090,3.92703515,192.94,192.91,2.88]
[1761450616389,1.51351508,192.98,192.91,2.88]
[1761450616590,3.92722203,192.97,192.91,2.88]
[1761450616798,3.92722203,192.96,192.91,2.88]
[1761450616988,3.92722203,192.95,192.91,2.88]
[1761450617189,3.92722203,192.94,192.91,2.88]
[1761450617400,6.34485257,192.98,192.91,2.88]
[1761450617591,3.92756875,192.97,192.91,2.88]
[1761450617791,3.92756875,192.96,192.91,2.88]
[1761450617994,3.92756875,192.95,192.91,2.88]
[1761450618195,3.92756875,192.94,192.91,2.88]
[1761450618493,3.92789586,192.93,192.91,2.88]
[1761450618692,1.51351508,192.96,192.91,2.88]
[1761450618893,3.92789586,192.95,192.91,2.88]
[1761450619094,3.92789586,192.94,192.91,2.88]
[1761450619297,3.92789586,192.93,192.91,2.88]
[1761450619492,1.51351508,192.96,192.91,2.88]
[1761450619693,3.92825591,192.95,192.91,2.88]
[1761450619891,3.92825591,192.94,192.91,2.88]
[1761450620087,3.92825591,192.93,192.91,2.88]
[1761450620291,1.51351508,192.96,192.91,2.88]
[1761450620586,3.928657,192.95,192.91,2.88]
[1761450620786,3.928657,192.94,192.91,2.88]
[1761450620986,1.51351508,192.96,192.91,2.88]
[1761450620987,3.928657,192.93,192.91,2.88]
[1761450621187,1.51351508,192.96,192.91,2.88]
[1761450621392,3.92908754,192.95,192.91,2.88]
[1761450621699,3.92908754,192.94,192.91,2.88]
[1761450621899,1.51351508,192.96,192.91,2.88]
[1761450622100,3.92881814,192.95,192.91,2.88]
[1761450622293,3.9290755,192.94,192.91,2.88]
[1761450622494,1.51351508,192.96,192.91,2.88]
[1761450622690,3.9290755,192.95,192.91,2.88]
[1761450622890,3.9290755,192.94,192.91,2.88]
[1761450623196,1.51351508,192.96,192.91,2.88]
[1761450623392,3.92944486,192.95,192.91,2.88]
[1761450623591,3.92944486,192.94,192.91,2.88]
[1761450623796,1.51351508,192.96,192.91,2.88]
[1761450624000,3.92933433,192.95,192.91,2.88]
[1761450624304,3.92933433,192.94,192.91,2.88]
[1761450624498,6.34485257,192.99,192.91,2.88]
[1761450624699,3.92976612,192.98,192.91,2.88]
[1761450625001,3.92976612,192.97,192.91,2.88]
[1761450625203,3.92976612,192.96,192.91,2.88]
[1761450625399,3.92976612,192.95,192.91,2.88]
[1761450625599,3.92976612,192.94,192.91,2.88]
[1761450625801,4.83133749,192.98,192.91,2.88]
[1761450626002,3.93021872,192.97,192.91,2.88]
[1761450626201,3.93021872,192.96,192.91,2.88]
[1761450626400,3.93021872,192.95,192.91,2.88]
[1761450626601,3.93021872,192.94,192.91,2.88]
[1761450626905,3.93069862,192.93,192.91,2.88]
[1761450627207,4.83133749,192.98,192.91,2.88]
[1761450627402,3.93125583,192.97,192.91,2.88]
[1761450627602,3.93125583,192.96,192.91,2.88]
[1761450627801,3.93125583,192.95,192.91,2.88]
[1761450628000,3.93125583,192.94,192.91,2.88]
[1761450628200,4.83133749,192.98,192.91,2.88]
[1761450628201,3.93125583,192.93,192.91,2.88]
[1761450628396,4.83133749,192.97,192.91,2.88]
[1761450628599,3.93190641,192.96,192.91,2.88]
[1761450628801,3.93190641,192.95,192.91,2.88]
[1761450629098,3.93190641,192.94,192.91,2.88]
[1761450629299,3.93190641,192.93,192.91,2.88]
[1761450629496,4.83133749,192.97,192.91,2.88]
[1761450629695,3.9327423,192.96,192.91,2.88]
[1761450629901,3.9327423,192.95,192.91,2.88]
[1761450630206,3.9327423,192.94,192.91,2.88]
[1761450630508,3.9327423,192.93,192.91,2.88]
[1761450630808,4.83133749,192.97,192.91,2.88]
[1761450631007,3.93268893,192.96,192.91,2.88]
[1761450631209,3.93268893,192.95,192.91,2.88]
[1761450631403,3.93268893,192.94,192.91,2.88]
[1761450631603,3.93268893,192.93,192.91,2.88]
[1761450631805,4.83133749,192.97,192.91,2.88]
[1761450632003,3.93269219,192.96,192.91,2.88]
[1761450632204,3.93269219,192.95,192.91,2.88]
[1761450632401,3.93269219,192.94,192.91,2.88]
[1761450632705,3.93269219,192.93,192.91,2.88]
[1761450632906,4.83133749,192.98,192.91,2.88]
[1761450633107,3.93258594,192.97,192.91,2.88]
[1761450633298,3.93258594,192.96,192.91,2.88]
[1761450633498,3.93258594,192.95,192.91,2.88]
[1761450633711,4.83133749,192.99,192.91,2.88]
[1761450633915,3.93232418,192.98,192.91,2.88]
[1761450634111,3.93232418,192.97,192.91,2.88]
[1761450634300,4.83133749,192.99,192.91,2.88]
[1761450634301,3.93232418,192.96,192.91,2.88]
[1761450634604,3.93232418,192.95,192.91,2.88]
[1761450634799,4.83133749,192.99,192.91,2.88]
[1761450634998,3.93203012,192.98,192.91,2.88]
[1761450635201,3.93203012,192.97,192.91,2.88]
[1761450635505,3.93203012,192.96,192.91,2.88]
[1761450635713,3.93203012,192.95,192.91,2.88]
[1761450636010,4.83133749,192.99,192.91,2.88]
[1761450636208,3.93183605,192.98,192.91,2.88]
[1761450636408,3.93183605,192.97,192.91,2.88]
[1761450636709,3.93183605,192.96,192.91,2.88]
[1761450636907,3.93183605,192.95,192.91,2.88]
[1761450637108,3.93183605,192.94,192.91,2.88]
[1761450637310,4.83133749,192.99,192.91,2.88]
[1761450637509,3.93173026,192.98,192.91,2.88]
[1761450637808,3.93173026,192.97,192.91,2.88]
[1761450638009,3.93173026,192.96,192.91,2.88]
[1761450638211,3.93173026,192.95,192.91,2.88]
[1761450638406,4.83133749,192.99,192.91,2.88]
[1761450638604,3.91667814,192.98,192.91,2.88]
[1761450638808,3.91667814,192.97,192.91,2.88]
[1761450639009,3.91667814,192.96,192.91,2.88]
[1761450639209,3.91667814,192.95,192.91,2.88]
[1761450639412,4.83133749,192.99,192.91,2.88]
[1761450639707,3.91666629,192.98,192.91,2.88]
[1761450639915,8.74800378,192.97,192.91,2.88]
[1761450640215,3.91666629,192.96,192.91,2.88]
[1761450640412,3.91666629,192.95,192.91,2.88]
[1761450640611,3.91666629,192.94,192.91,2.88]
[1761450640816,3.91666629,192.93,192.91,2.88]
[1761450641011,4.83133749,192.98,192.91,2.88]
[1761450641315,8.74839692,192.97,192.91,2.88]
[1761450641516,3.91705943,192.96,192.91,2.88]
[1761450641713,4.83133749,192.98,192.91,2.88]
[1761450641714,3.91705943,192.95,192.91,2.88]
[1761450641914,4.83133749,192.98,192.91,2.88]
[1761450641915,3.91705943,192.94,192.91,2.88]
[1761450642116,4.83133749,192.98,192.91,2.88]
[1761450642117,3.91705943,192.93,192.91,2.88]
[1761450642313,4.83133749,192.98,192.91,2.88]
[1761450642512,3.91716439,192.97,192.91,2.88]
[1761450642711,3.91716439,192.96,192.91,2.88]
[1761450642910,3.91716439,192.95,192.91,2.88]
[1761450643110,3.91716439,192.94,192.91,2.88]
[1761450643310,3.91716439,192.93,192.91,2.88]
[1761450643512,4.83133749,192.98,192.91,2.88]
[1761450643717,3.91731038,192.97,192.91,2.88]
[1761450643919,3.91731038,192.96,192.91,2.88]
[1761450644210,3.91731038,192.95,192.91,2.88]
[1761450644414,4.83133749,192.99,192.91,2.88]
[1761450644615,3.91717321,192.98,192.91,2.88]
[1761450644914,3.91717321,192.97,192.91,2.88]
[1761450645110,3.91717321,192.96,192.91,2.88]
[1761450645317,3.91717321,192.95,192.91,2.88]
[1761450645515,4.83133749,192.99,192.91,2.88]
[1761450645717,3.91713451,192.98,192.91,2.88]
[1761450646017,3.91713451,192.97,192.91,2.88]
[1761450646218,3.91713451,192.96,192.91,2.88]
[1761450646519,3.91713451,192.95,192.91,2.88]
[1761450646713,4.83133749,192.99,192.91,2.88]
[1761450646916,3.916987,192.98,192.91,2.88]
[1761450647111,3.916987,192.97,192.91,2.88]
[1761450647319,0.90195164,193.06,192.91,2.88]
[1761450647320,3.916987,192.96,192.91,2.88]
[1761450647616,4.83133749,193.0,192.91,2.88]
[1761450647818,3.91669674,192.99,192.91,2.88]
[1761450648023,3.91669674,192.98,192.91,2.88]
[1761450648212,3.91669674,192.97,192.92,2.68]
[1761450648413,3.91669674,192.96,192.92,2.68]
[1761450648624,4.83133749,193.01,192.92,2.68]
[1761450648924,3.91636885,193.0,192.92,2.68]
[1761450649219,3.91636885,192.99,192.92,2.68]
[1761450649426,3.91636885,192.98,192.92,2.68]
[1761450649724,3.91636885,192.97,192.92,2.68]
[1761450650024,3.91636885,192.96,192.92,2.68]
[1761450650324,4.83133749,193.01,192.92,2.68]
[1761450650518,3.91592547,193.0,192.92,2.68]
[1761450650717,3.91592547,192.99,192.92,2.68]
[1761450650924,3.91592547,192.98,192.92,2.68]
[1761450651127,3.91592547,192.97,192.92,2.68]
[1761450651426,4.83133749,193.02,192.92,2.68]
[1761450651724,3.91550005,193.01,192.92,2.68]
[1761450652023,3.91550005,193.0,192.92,2.68]
[1761450652220,4.83133749,193.02,192.92,2.68]
[1761450652221,3.91550005,192.99,192.92,2.68]
[1761450652519,3.91550005,192.98,192.92,2.68]
[1761450652719,4.83133749,193.02,192.92,2.68]
[1761450652921,3.91491677,193.01,192.92,2.68]
[1761450653221,3.91491677,193.0,192.92,2.68]
[1761450653421,3.91491677,192.99,192.92,2.68]
[1761450653610,3.91491677,192.98,192.92,2.68]
[1761450653914,4.83133749,193.02,192.92,2.68]
[1761450654116,3.91439673,193.01,192.92,2.68]
[1761450654322,3.91439673,193.0,192.92,2.68]
[1761450654517,3.91439673,192.99,192.92,2.68]
[1761450654718,3.91439673,192.98,192.92,2.68]
[1761450654924,3.91439673,192.97,192.92,2.68]
[1761450655125,3.91439673,192.96,192.92,2.68]
[1761450655425,4.83133749,193.01,192.92,2.68]
[1761450655724,3.91400794,193.0,192.92,2.68]
[1761450655923,3.91400794,192.99,192.92,2.68]
[1761450656123,3.91400794,192.98,192.92,2.68]
[1761450656324,3.91400794,192.97,192.92,2.68]
[1761450656524,3.91400794,192.96,192.92,2.68]
[1761450656725,4.83133749,193.0,192.92,2.68]
[1761450656925,3.91411859,192.99,192.92,2.68]
[1761450657120,3.91411859,192.98,192.92,2.68]
[1761450657321,3.91411859,192.97,192.92,2.68]
[1761450657521,3.91411859,192.96,192.92,2.68]
[1761450657721,3.91411859,192.95,192.92,2.68]
[1761450657921,4.83133749,193.0,192.92,2.68]
[1761450658218,3.91413708,192.99,192.92,2.68]
[1761450658420,3.91413708,192.98,192.92,2.68]
[1761450658618,3.91413708,192.97,192.92,2.68]
[1761450658917,3.91413708,192.96,192.92,2.68]
[1761450659121,4.83133749,193.0,192.92,2.68]
[1761450659327,3.91405893,192.99,192.92,2.68]
[1761450659524,3.91405893,192.98,192.92,2.68]
[1761450659727,3.91405893,192.97,192.92,2.68]
[1761450659931,3.91405893,192.96,192.92,2.68]
[1761450660127,4.83133749,193.0,192.92,2.68]
[1761450660426,3.91398997,192.99,192.92,2.68]
[1761450660725,3.91398997,192.98,192.92,2.68]
[1761450660926,3.91398997,192.97,192.92,2.68]
[1761450661229,3.91398997,192.96,192.92,2.68]
[1761450661530,4.83133749,193.0,192.92,2.68]
[1761450661724,3.91393113,192.99,192.92,2.68]
[1761450661922,3.91393113,192.98,192.92,2.68]
[1761450662125,3.91393113,192.97,192.92,2.68]
[1761450662328,3.91393113,192.96,192.92,2.68]
[1761450662523,4.83133749,193.0,192.92,2.68]
[1761450662728,3.91399884,192.99,192.92,2.68]
[1761450662929,3.91399884,192.98,192.92,2.68]
[1761450663217,3.91399884,192.97,192.92,2.68]
[1761450663418,3.91399884,192.96,192.92,2.68]
[1761450663629,4.83133749,193.0,192.92,2.68]
[1761450663829,3.91413179,192.99,192.92,2.68]
[1761450664130,3.91413179,192.98,192.92,2.68]
[1761450664332,3.91413179,192.97,192.92,2.68]
[1761450664532,3.91413179,192.96,192.89,2.69]
[1761450664733,3.91413179,192.95,192.89,2.69]
[1761450665030,4.83133749,192.99,192.89,2.69]
[1761450665227,3.91455873,192.98,192.89,2.69]
[1761450665432,4.83133749,192.99,192.89,2.69]
[1761450665433,3.91455873,192.97,192.89,2.69]
[1761450665631,3.91455873,192.96,192.89,2.69]
[1761450665828,3.91455873,192.95,192.89,2.69]
[1761450666034,4.83133749,192.99,192.89,2.69]
[1761450666236,3.9147717,192.98,192.89,2.69]
[1761450666436,3.9147717,192.97,192.89,2.69]
[1761450666638,3.9147717,192.96,192.89,2.69]
[1761450666938,8.82895088,193.01,192.89,2.69]
[1761450666939,3.9147717,192.95,192.89,2.69]
[1761450667134,3.9147717,192.94,192.89,2.69]
[1761450667334,3.9147717,192.93,192.89,2.69]
[1761450667636,4.83133749,192.98,192.89,2.69]
[1761450667838,3.91499921,192.97,192.89,2.69]
[1761450668037,3.91499921,192.96,192.89,2.69]
[1761450668238,3.91499921,192.95,192.89,2.69]
[1761450668438,3.91499921,192.94,192.89,2.69]
[1761450668641,4.83133749,192.99,192.89,2.69]
[1761450668839,3.92167933,192.98,192.89,2.69]
[1761450669038,3.92167933,192.97,192.89,2.69]
[1761450669239,3.92167933,192.96,192.89,2.69]
[1761450669539,3.92167933,192.95,192.89,2.69]
[1761450669739,4.83133749,193.01,192.91,2.67]
[1761450670039,3.92144477,193.0,192.91,2.67]
[1761450670238,3.92144477,192.99,192.91,2.67]
[1761450670440,4.83133749,193.01,192.91,2.67]
[1761450670441,3.92144477,192.98,192.91,2.67]
[1761450670635,3.92144477,192.97,192.91,2.67]
[1761450670841,4.83133749,193.01,192.91,2.67]
[1761450671030,3.92118374,193.0,192.91,2.67]
[1761450671236,3.92118374,192.99,192.91,2.67]
[1761450671433,3.92118374,192.98,192.91,2.67]
[1761450671643,3.92118374,192.97,192.91,2.67]
[1761450671847,4.83133749,193.01,192.91,2.67]
[1761450672038,3.92107588,193.0,192.91,2.67]
[1761450672237,3.92107588,192.99,192.91,2.67]
[1761450672442,3.92107588,192.98,192.91,2.67]
[1761450672642,3.92107588,192.97,192.91,2.67]
[1761450672941,4.83133749,193.01,192.91,2.67]
[1761450673141,3.92107337,193.0,192.91,2.67]
[1761450673344,3.92107337,192.99,192.91,2.67]
[1761450673544,3.92107337,192.98,192.91,2.67]
[1761450673744,3.92107337,192.97,192.91,2.67]
[1761450673948,4.83133749,193.01,192.91,2.67]
[1761450674141,3.92109806,193.0,192.91,2.67]
[1761450674349,3.92109806,192.99,192.91,2.67]
[1761450674553,3.92109806,192.98,192.91,2.67]
[1761450674750,3.92109806,192.97,192.91,2.67]
[1761450674949,4.83133749,193.01,192.91,2.67]
[1761450675149,3.92115019,193.0,192.91,2.67]
[1761450675354,3.92115019,192.99,192.91,2.67]
[1761450675554,3.92115019,192.98,192.91,2.67]
[1761450675756,3.92115019,192.97,192.91,2.67]
[1761450675956,4.83133749,193.01,192.91,2.67]
[1761450676157,3.92123032,193.0,192.91,2.67]
[1761450676455,4.83133749,193.01,192.91,2.67]
[1761450676456,3.92123032,192.99,192.91,2.67]
[1761450676657,3.92123032,192.98,192.91,2.67]
[1761450676857,3.92123032,192.97,192.91,2.67]
[1761450677058,3.92123032,192.96,192.91,2.67]
[1761450677252,4.83133749,193.0,192.91,2.67]
[1761450677454,3.92186541,192.99,192.91,2.67]
[1761450677656,3.92186541,192.98,192.91,2.67]
[1761450677857,3.92186541,192.97,192.91,2.67]
[1761450678056,3.92186541,192.96,192.91,2.67]
[1761450678255,4.83133749,193.0,192.91,2.67]
[1761450678455,3.92192496,192.99,192.91,2.67]
[1761450678656,3.92192496,192.98,192.91,2.67]
[1761450678859,3.92192496,192.97,192.91,2.67]
[1761450679059,3.92192496,192.96,192.91,2.67]
[1761450679355,4.83133749,193.0,192.91,2.67]
[1761450679556,3.9218694,192.99,192.91,2.67]
[1761450679748,3.9218694,192.98,192.91,2.67]
[1761450679947,3.9218694,192.97,192.91,2.67]
[1761450680148,3.9218694,192.96,192.91,2.67]
[1761450680358,3.92198481,192.95,192.91,2.67]
[1761450680559,4.83133749,193.0,192.91,2.67]
[1761450680757,3.92198481,192.99,192.91,2.67]
[1761450680959,3.92198481,192.98,192.91,2.67]
[1761450681159,3.92198481,192.97,192.91,2.67]
[1761450681360,3.92198481,192.96,192.91,2.67]
[1761450681559,3.92198481,192.95,192.91,2.67]
[1761450681761,3.92198481,192.94,192.91,2.67]
[1761450682061,4.83133749,192.99,192.91,2.67]
[1761450682361,3.92203812,192.98,192.91,2.67]
[1761450682559,3.92203812,192.97,192.91,2.67]
[1761450682758,3.92203812,192.96,192.91,2.67]
[1761450682954,3.92203812,192.95,192.91,2.67]
[1761450683159,4.83133749,192.99,192.91,2.67]
[1761450683459,3.9220008,192.98,192.91,2.67]
[1761450683660,3.9220008,192.97,192.91,2.67]
[1761450683860,3.9220008,192.96,192.91,2.67]
[1761450684059,3.9220008,192.95,192.91,2.67]
[1761450684262,4.83133749,192.99,192.91,2.67]
[1761450684460,3.92200844,192.98,192.91,2.67]
[1761450684656,3.92200844,192.97,192.91,2.67]
[1761450684861,3.92200844,192.96,192.91,2.67]
[1761450685063,3.92200844,192.95,192.91,2.67]
[1761450685256,4.83133749,192.99,192.91,2.67]
[1761450685455,3.9221869,192.98,192.91,2.67]
[1761450685753,3.9221869,192.97,192.91,2.67]
[1761450685954,3.9221869,192.96,192.91,2.67]
[1761450686150,3.9221869,192.95,192.91,2.67]
[1761450686356,4.83133749,192.99,192.91,2.67]
[1761450686660,3.92245124,192.98,192.91,2.67]
[1761450686859,3.92245124,192.97,192.91,2.67]
[1761450687160,3.92245124,192.96,192.91,2.67]
[1761450687467,3.92245124,192.95,192.91,2.67]
[1761450687666,4.83133749,192.99,192.91,2.67]
[1761450687868,3.92273363,192.98,192.91,2.67]
[1761450688167,3.92273363,192.97,192.91,2.67]
[1761450688368,3.92273363,192.96,192.91,2.67]
[1761450688667,3.92273363,192.95,192.91,2.67]
[1761450688857,4.83133749,192.99,192.91,2.67]
[1761450689054,3.92299144,192.98,192.91,2.67]
[1761450689258,3.92299144,192.97,192.91,2.67]
[1761450689462,3.92299144,192.96,192.91,2.67]
[1761450689666,3.92299144,192.95,192.91,2.67]
[1761450689969,4.83133749,192.99,192.91,2.67]
[1761450690264,3.9230032,192.98,192.91,2.67]
[1761450690464,3.9230032,192.97,192.91,2.67]
[1761450690768,3.9230032,192.96,192.91,2.67]
[1761450690969,3.9230032,192.95,192.91,2.67]
[1761450691168,4.83133749,192.99,192.91,2.67]
[1761450691467,3.92300015,192.98,192.91,2.67]
[1761450691666,3.92300015,192.97,192.91,2.67]
[1761450691871,3.92300015,192.96,192.91,2.67]
[1761450692167,3.92300015,192.95,192.91,2.67]
[1761450692361,4.83133749,192.99,192.91,2.67]
[1761450692562,3.92297001,192.98,192.91,2.67]
[1761450692756,3.92297001,192.97,192.91,2.67]
[1761450692958,3.92297001,192.96,192.91,2.67]
[1761450693159,3.92297001,192.95,192.91,2.67]
[1761450693460,4.83133749,192.99,192.91,2.67]
[1761450693658,3.92298045,192.98,192.91,2.67]
[1761450693864,3.92298045,192.97,192.91,2.67]
[1761450694167,3.92298045,192.96,192.91,2.67]
[1761450694364,3.92298045,192.95,192.91,2.67]
[1761450694668,4.83133749,192.99,192.91,2.67]
[1761450694868,3.92288677,192.98,192.91,2.67]
[1761450695072,3.92288677,192.97,192.91,2.67]
[1761450695363,3.92288677,192.96,192.91,2.67]
[1761450695568,3.92288677,192.96,192.9,1.51242289]
[1761450695569,4.83133749,193.02,192.94,2.67]
[1761450695870,3.92240293,193.01,192.94,2.67]
[1761450696070,3.92240293,193.0,192.94,2.67]
[1761450696264,3.92240293,192.99,192.94,2.67]
[1761450696566,3.92240293,192.98,192.94,2.67]
[1761450696756,6.34376038,193.03,192.94,2.67]
[1761450696961,3.92179453,193.02,192.94,2.67]
[1761450697167,3.92179453,193.01,192.94,2.67]
[1761450697363,3.92179453,193.0,192.94,2.67]
[1761450697570,3.92179453,192.99,192.94,2.67]
[1761450697867,3.92145682,192.98,192.94,2.67]
[1761450698070,4.83133749,193.02,192.94,2.67]
[1761450698272,3.91582137,193.01,192.94,2.67]
[1761450698465,3.91582137,193.0,192.94,2.67]